Cogmind - Beta 16 @@@ ROGUE MODE // 2026.01.24 @ 13:01:22 Player: Singularius Result: Destroyed by Autobeam Turret with Autobeam Performance ------------- Evolutions (0) 0 Regions Visited (2) 400 Robots Destroyed (27) 135 Value Destroyed (572) 572 Prototype IDs (4) 80 Alien Tech Used (0) 0 Bonus (0) 0 TOTAL SCORE: 1187 Bonus ------- None Cogmind --------- Core Integrity 0/250 Matter 293/300 Energy 246/250 System Corruption 0% Temperature Cool (14) Movement Treading (160) Location -10/Subcaves Parts ------- > --- POWER (1) -------- Ion Engine > --- PROPULSION (2) --- Light Treads Light Treads > --- UTILITY (2) ------ Large Storage Unit Seismic Detector > --- WEAPON (2) ------- Subdweller Beam Cannon > --- INVENTORY (15) --- Aluminum Leg Aluminum Leg Aluminum Leg Aluminum Leg Makeshift Leg Heat Sink Improved Heat Sink Light Armor Plating Light Armor Plating Light Armor Plating Riot Gun Light Assault Rifle Subdweller Machine Gun Grenade Launcher Peak State ------------ > --- POWER ------------ Ion Engine > --- PROPULSION ------- Light Treads Light Treads > --- UTILITY ---------- Improved Heat Sink Large Storage Unit > --- WEAPON ----------- Subdweller Laser Subdweller Beam Cannon > --- INVENTORY -------- Light Treads Light Treads Aluminum Leg Aluminum Leg Aluminum Leg Aluminum Leg Makeshift Leg Heat Sink Seismic Detector Light Armor Plating Light Armor Plating Light Armor Plating Riot Gun Light Assault Rifle Grenade Launcher [Rating: 13] Favorites ----------- Power Ion Engine Engine Ion Engine Propulsion Light Treads Treads Light Treads Utility Large Storage Unit Device Seismic Detector Storage Large Storage Unit Weapon Beam Cannon Energy Gun Subdweller Laser Energy Cannon Beam Cannon Ballistic Gun Light Assault Rifle Launcher Grenade Launcher Build | -11 -10 -10 ------- Run | Yrd Mat Sub Slots Evolved . | . . . Power . | . . . Propulsion . | . . . Utility . | . . . Weapon . | . . . Parts Attached 20 | 7 7 6 Power 2 | 1 1 . Engine 2 | 1 1 . Core . | . . . Reactor . | . . . Propulsion 4 | 2 . 2 Treads 4 | 2 . 2 Leg . | . . . Wheel . | . . . Hover . | . . . Flight . | . . . Utility 7 | 2 5 . Device 5 | 1 4 . Storage 2 | 1 1 . Processor . | . . . Hackware . | . . . Protection . | . . . Artifact . | . . . Weapon 7 | 2 1 4 Energy Gun 1 | . . 1 Energy Cannon 2 | . 1 1 Ballistic Gun 2 | 2 . . Ballistic Cannon . | . . . Launcher 2 | . . 2 Special Weapon . | . . . Impact Weapon . | . . . Slashing Weapon . | . . . Piercing Weapon . | . . . Special Melee Weapon . | . . . Unidentified Prototypes . | . . . Parts Lost 7 | . 3 4 Power 1 | . 1 . Propulsion 2 | . . 2 Utility 1 | . 1 . Weapon 3 | . 1 2 Highest Loss Streak 3 | . 1 3 To Critical Strikes 1 | . . 1 Average Backups 10 | 2 8 14 Power . | . . . Propulsion 4 | 1 4 5 Utility 2 | . 1 5 Weapon 2 | . 1 3 Tool/Special . | . . . Unused Backups 14 | . 1 13 Power . | . . . Propulsion 7 | . . 7 Utility 4 | . . 4 Weapon 3 | . 1 2 Tool/Special . | . . . Average Slot Usage (%) 99 | . 99 99 Engine 13 | . 13 14 Treads 27 | . 27 27 Device 13 | . 13 14 Storage 14 | . 14 14 Energy Gun 3 | . . 11 Energy Cannon 12 | . 12 14 Ballistic Gun 11 | . 15 2 Peak Build Rating 13 | 7 10 13 Average Rating 8 | 4 7 10 On Entrance 5 | . 7 8 Avg Prop Armor Cover (%) . | . . . Naked Turns . | . . . Heaviest Build 38 | 14 31 38 Greatest Support 40 | 40 40 40 Greatest Overweight (x) 4 | 4 . 1 Average Overweight (x) . | . . . Largest Inventory Capacity 15 | 8 15 15 Average Capacity 13 | 7 12 15 Most Carried 15 | 4 15 15 Average Carried 10 | 2 8 14 Final Capacity 15 | 8 15 15 Final Carried 15 | 4 15 14 Class Distribution -------------------- 100% | Mutant Dominant Class ---------------- Mutant | -10/Materials Mutant | -10/Subcaves Resources | -11 -10 -10 ----------- Run | Yrd Mat Sub Matter Collected 621 | 278 230 113 Remotely . | . . . Salvage Created 691 | 18 594 79 Parts 44 | 4 34 6 Haulers Intercepted 2 | . 2 . Recyclers Shooed . | . . . Parts Field Recycled . | . . . Retrieved Matter . | . . . Parts Self-Destructed 5 | . . 5 Prevented . | . . . Parts Restored . | . . . Kills | -11 -10 -10 ------- Run | Yrd Mat Sub Combat Hostiles Destroyed 21 | . 13 8 Guns 6 | . 4 2 Cannons 10 | . 9 1 AOE 4 | . . 4 Classes Destroyed 7 | 1 6 . Tunneler 2 | 1 1 . Hauler 2 | . 2 . Operator 1 | . 1 . Watcher 1 | . 1 . Swarmer 10 | . 3 7 Grunt 9 | . 9 . Subdweller 2 | . 1 1 Best Kill Streak 4 | 1 4 4 Combat Bots Only 4 | . 3 4 Max Kills in Single Turn 2 | 1 1 2 Gunslinging . | . . . Exploded 2 | . . 2 Melee . | . . . Uniques/NPCs Destroyed . | . . . Combat | -11 -10 -10 -------- Run | Yrd Mat Sub Hostile Shots Fired 151 | . 73 78 Missed 48 | . 26 22 Hits 103 | . 47 56 Projectile 103 | . 47 56 Critical Strikes 3 | . 2 1 Damage Taken 1126 | . 612 514 Core 251 | . 157 94 Absorbed by Shields . | . . . Regen/Repaired (Parts) 59 | . 59 . Core Remaining (%) 100 | 100 . . Volleys Fired 71 | 2 56 13 Largest 2 | 2 2 2 Hottest 140 | 40 80 140 Shots Fired 138 | 4 112 22 Gun 82 | 4 69 9 Cannon 53 | . 43 10 Launcher 3 | . . 3 Special . | . . . Kinetic 73 | 4 69 . Thermal 62 | . 43 19 Explosive 3 | . . 3 Electromagnetic . | . . . Robot Hit Streak 7 | 2 6 7 Robot Miss Streak 3 | 1 3 3 Penetration Max . | . . . Secondary Targets 1 | . 1 . Max Gunslinging Chain 1 | . 1 . Shots Hit Robots 77 | 3 65 9 Core Hits 35 | 1 28 6 Critical Kills 1 | . . 1 Critical Parts Destroyed . | . . . Critical Strikes 1 | . . 1 Meltdown 1 | . . 1 Melee Attacks . | . . . Impact . | . . . Slashing . | . . . Piercing . | . . . Sneak Attacks . | . . . Combat Hostiles . | . . . Follow-up Attacks . | . . . Damage Inflicted 1460 | 28 952 480 Guns 487 | 28 355 104 Cannons 702 | . 597 105 Explosions 271 | . . 271 Melee . | . . . Ramming . | . . . Kinetic 383 | 28 355 . Thermal 806 | . 597 209 Explosive 271 | . . 271 Electromagnetic . | . . . Impact . | . . . Slashing . | . . . Piercing . | . . . Highest Corruption . | . . . Average Corruption . | . . . Corruption Purged . | . . . Corruption Blocked . | . . . Overload Shots . | . . . Overflow Damage 17 | . 5 12 Projectiles 5 | . 5 . Explosions 12 | . . 12 Melee . | . . . Knockbacks . | . . . Impact . | . . . Kinetic . | . . . Secondary . | . . . Self-Inflicted Damage 41 | . . 41 Shots 2 | . . 2 Rammed . | . . . Targets Rammed . | . . . Kicked . | . . . Crushed . | . . . Highest Temperature 192 | . 192 144 Average Temperature 51 | . 47 73 Received Heat Transfer 324 | . 270 54 Siege Activations . | . . . Martial Activations . | . . . Shielding Activations . | . . . Robots Disrupted . | . . . Combat Hostiles . | . . . Robots Corrupted . | . . . Combat Hostiles . | . . . Parts Fried . | . . . Impact Corruptions . | . . . Robots Melted 1 | . . 1 Combat Hostiles 1 | . . 1 Parts Melted 4 | . 3 1 Heat Transferred 1531 | . 1258 273 Parts Sabotaged . | . . . Parts Stolen . | . . . Parts Stripped . | . . . Power Chain Reactions . | . . . Alert | -11 -10 -10 ------- Run | Yrd Mat Sub Maximum Alert Level . | . . . Low Security (%) 100 | 100 100 . Level 1 . | . . . Level 2 . | . . . Level 3 . | . . . Level 4 . | . . . Level 5 . | . . . High Security . | . . . Max Security . | . . . Peak Influence 84 | 5 84 . Initial . | . . . Average 21 | . 22 . Influence Increases 620 | 5 420 195 Destroy 0b10 Robot/C 380 | . 240 140 Destroy 0b10 Robot/NC 30 | 5 25 . Destroy Leader 66 | . 56 10 Successful Hack 39 | . 39 . Disable Machine 15 | . 15 . Lose Combat Pursuer 90 | . 45 45 Influence Decreases 505 | 5 420 80 Time Decay 465 | 5 400 60 Lost Part 40 | . 20 20 Squads Dispatched 2 | . 2 . Investigation 1 | . 1 . Extermination . | . . . Reinforcement 1 | . 1 . Assault . | . . . Garrison . | . . . Intercept . | . . . Searches Triggered . | . . . Construction Impeded . | . . . Haulers Reinforced . | . . . Active Scanning Responses . | . . . Cargo Convoy Interrupts . | . . . Stealth | -11 -10 -10 --------- Run | Yrd Mat Sub Distress Signals 1 | . 1 . Communications Jammed . | . . . Distress Signals . | . . . Times Spotted 40 | . 30 10 Peak Tracking Total 6 | . 5 6 Tactical Retreats 4 | . 3 1 Traps | -11 -10 -10 ------- Run | Yrd Mat Sub Traps Triggered 3 | . 2 1 Indirectly . | . . . Trap Hack Attempts . | . . . Triggered . | . . . Disarmed . | . . . Reprogrammed . | . . . Reused . | . . . Traps Extracted . | . . . Installed . | . . . Triggered . | . . . Machines | -11 -10 -10 ---------- Run | Yrd Mat Sub Machines Disabled 1 | . 1 . Max in Single Turn 1 | . 1 . Machines Repaired . | . . . Machines Dismantled . | . . . Machines Sabotaged . | . . . Overloaded Fab Kills . | . . . Hacking | -11 -10 -10 --------- Run | Yrd Mat Sub Machines Accessed 7 | . 7 . Terminals 6 | . 6 . Fabricators . | . . . Repair Stations 1 | . 1 . Recycling Units . | . . . Scanalyzers . | . . . Garrison Access . | . . . Total Hacks 22 | . 22 . Successful 13 | . 13 . Failed 9 | . 9 . Catastrophic 2 | . 2 . Database Lockouts . | . . . Manual 6 | . 6 . Terminals 20 | . 20 . Fabricators . | . . . Repair Stations 2 | . 2 . Recycling Units . | . . . Scanalyzers . | . . . Garrison Access . | . . . Terminal Hacks 9 | . 9 . Prototype ID Bank 3 | . 3 . Emergency Access Points 1 | . 1 . Locate Traps 4 | . 4 . Zone Layout 1 | . 1 . Fabricator Hacks . | . . . Repair Station Hacks 2 | . 2 . Scan Component 1 | . 1 . Repair 1 | . 1 . Recycling Unit Hacks . | . . . Scanalyzer . | . . . Garrison Access Hacks . | . . . Unauthorized Hacks 2 | . 2 . Terminals 2 | . 2 . Botnet 2 | . 2 . Fabricators . | . . . Repair Stations . | . . . Recycling Units . | . . . Scanalyzers . | . . . Garrison Access . | . . . Data Cores Recovered 1 | . 1 . Used 1 | . 1 . Hacking Detections 6 | . 6 . Full Trace Events . | . . . Feedback Events . | . . . Feedback Blocked . | . . . Robot Schematics Acquired . | . . . Robots Built . | . . . Authchips . | . . . Time . | . . . Total Robot Build Rating . | . . . Part Schematics Acquired . | . . . Parts Built . | . . . Authchips . | . . . Time . | . . . Total Part Build Rating . | . . . Part Studies Acquired . | . . . Parts Repaired 1 | . 1 . Time 26 | . 26 . Parts Recycled . | . . . Recycled Matter . | . . . Retrieved Matter . | . . . Retrieved Components . | . . . Parts Scanalyzed . | . . . Part Schematics Acquired . | . . . Parts Damaged . | . . . Bothacking | -11 -10 -10 ------------ Run | Yrd Mat Sub Used RIF Installer . | . . . Robots Hacked . | . . . Non-combat . | . . . Combat . | . . . Robot Hacks Applied . | . . . Relay Couplers Released . | . . . Fabnet Peak Effective % . | . . . Robots Rewired . | . . . Allies Hacked . | . . . Hacks Repelled . | . . . Allies | -11 -10 -10 -------- Run | Yrd Mat Sub Total Allies . | . . . Largest Group . | . . . Highest-Rated Group . | . . . Highest-Rated Ally . | . . . Total Orders . | . . . Ally Attacks . | . . . Total Damage . | . . . Kills . | . . . Allies Corrupted . | . . . Allies Melted . | . . . Intel | -11 -10 -10 ------- Run | Yrd Mat Sub Active Infowar (turns) 1553 | 17 743 793 Seismic 1553 | 17 743 793 Robot Analysis Total . | . . . Derelict Logs Recovered . | . . . Drone Launches . | . . . Drone Recoveries . | . . . Exploration | -11 -10 -10 ------------- Run | Yrd Mat Sub Turns Passed 2449 | 92 1560 797 Spaces Moved 1281 | 47 772 462 Core 16 | 16 . . Treads 1265 | 31 772 462 Legs . | . . . Wheels . | . . . Hover . | . . . Flight . | . . . Fastest Speed 50 | 50 160 160 Average Speed 159 | 151 160 160 Slowest Speed 250 | 250 160 240 Overloaded Moves . | . . . Propulsion Burnouts . | . . . Robots Hopped . | . . . Potential Cave-ins . | . . . Cave-ins Triggered . | . . . Exploration Rate (%) 40 | 5 97 18 Regions Visited 2 Branch Regions 1 Pre-discovered Areas . | . . . Known Exits Taken . | . . . Unknown Exits Taken 2 | 1 1 . Scrap Searched . | . . . Spaces Dug . | . . . Terrain Destroyed 17 | . . 17 Melee . | . . . Projectile 2 | . . 2 AOE 15 | . . 15 Terrain Rammed . | . . . Walls Destroyed . | . . . Machines Disabled . | . . . Actions | -11 -10 -10 --------- Run | Yrd Mat Sub Total 1546 | 61 991 494 Wait 139 | 2 136 1 Move 1279 | 46 771 462 Hop . | . . . Pick Up 22 | 4 14 4 Fast Attach 11 | 7 2 2 Attach 4 | . 2 2 Detach . | . . . Swap 12 | . 6 6 Drop 8 | . 4 4 Fire 71 | 2 56 13 Melee . | . . . Ram . | . . . Kick . | . . . Crush . | . . . Escape Stasis . | . . . Rewire . | . . . Trap . | . . . Miscellaneous . | . . . Route ------- -11/Scrapyard -10/Materials (discovered 6 exits: [*Mat x3] / [*Min x2] / [*Sub]) -10/Subcaves History --------- Turn | Location | Event 22 | -11/Scrapyard | Discovered new exit (range 16) 93 | -11/Scrapyard | Entered Materials 207 | -10/Materials | Discovered new exit (range 11) 214 | -10/Materials | Discovered new exit (range 5) 247 | -10/Materials | Discovered new exit (range 14) 315 | -10/Materials | Build established: Mutant 671 | -10/Materials | Discovered new exit (range 7) 767 | -10/Materials | Core integrity fell below 50% 888 | -10/Materials | Discovered new exit (range 15) 1310 | -10/Materials | Discovered new exit (range 10) 1352 | -10/Materials | Repaired Lgt. Treads 1393 | -10/Materials | Derelicts attacked the area 1653 | -10/Materials | Entered Subcaves 1654 | -10/Subcaves | A swath of the cavern ceiling suddenly collapsed 1654 | -10/Subcaves | Approached by a straggling Scientist 1765 | -10/Subcaves | Shifting Twisted Machinery released Sub. Beam Cannon 1835 | -10/Subcaves | Shifting Twisted Machinery released Mak. Leg 1836 | -10/Subcaves | Shifting Twisted Machinery released Riot Gun 1930 | -10/Subcaves | Core integrity fell below 20% 1966 | -10/Subcaves | Lost 3 parts (2n1w) 2450 | -10/Subcaves | Destroyed by Autobeam Turret with Autobeam Last Messages --------------- 01951_ Acquired 20 matter. 01956_ Lgt. Assault Rifle fries itself beyond repair. 01957_ Flight Unit fries itself beyond repair. 01983_ Acquired Sub. Machine Gun. 02056_ Subatomizers dissect the Wheel. 02425_ Subatomizers dissect the Aluminum Leg. 02437_ Acquired 10 matter. 02437_ S-10 Pest destroyed. 02438_ Acquired 10 matter. 02439_ Subatomizers dissect the Flight Unit. 02440_ Acquired 10 matter. 02441_ S-10 Pest destroyed. 02441_ Destroyed Lgt. Ion Engine. 02441_ S-10 Pest destroyed. 02442_ Acquired 8 matter. 02446_ Lgt. Assault Rifle fries itself beyond repair. 02449_ The unstable cave ceiling collapses. 02450_ Sub. Laser destroyed. Map ----- +----------------------------------------------------+ | ?????????????????????????????????????????????????? | | ?????????????????????????????????????????????????? | | ?????????????????????????????????????????????????? | | ?????????????????????????????????????????????????? | | ?????????????????????????????????????????????????? | | ?????????????????????????????????????????????????? | | ?????????????????????????????????????????????????? | | ?????????????????????????????????????????????????? | | ?????????????????????????????????????????????????? | | ?????????????????????????????????????#######?????? | | ??????????????????????? t t ????????## ####### | | ?????????????????????? ????????# ##"""" | | ??????????????????????? ????????### """""" | | ??????????????????????? ?????????# """ # | | ???????????????????????# #???????#### """ # ## | | ???????????????????????# #??????## # "## # | | ???????????????????????# #??????# "## ## | | ???????????????????????# #??????# ## ## | | ?????????????????#?????# #??????# #= # | | ?????????????????# ???## ###????### *% # | | ??????????????????# ??# #??????#### #### | | ?????????????????## ?## ##????????# ## #### | | ?????????????????# # ######??## ###### " | | ?????????????????# ### #### ##???# "" | | ?????????????????## * ##?# ##" | | ?????????????# %@ ## ??#" | | ???????????# ## #### ###?? ## | | ???????????# #### #######?# ##?# "# | | ???????????????????## #???## #?# #####"# | | ????????????????????####???## ### #" ## | | ???????????????????????????# ## # | | ???????????????????????????# # | | ???????????????????????????## ## # | | ????????????????????????????## ### ### | | ?????????????????????????????# ##### ###&|%% | | ????????????????????????????## # ###%* | | ????????????????????????????#"" ###""" #?##% | | ????????????????????????????# #### """"#?## | | ????????????????????????????# #?# ### | | ????????????????????????????# #?# " "" | | ????????????????????????????# #### " ##" | | ????????????????????????????## ## ]" = ### | | ??????????????????????????### "" # " ##?? | | ?????????????????????????## "" ### ##??# | | ?????????????????????????# " #?######?### | | ?????????????????????????# #### ""##????????# | | ?????????????????????????## ##??#####?????????# | | ??????????????????????????####?????????????????### | | ?????????????????????????????????????????????????? | | ?????????????????????????????????????????????????? | +----------------------------------------------------+ Best States ------------- Heat Dissipation 35 Energy Generation 10 Energy Capacity 250 Matter Stores 300 Matter Capacity 300 Sight Range 16 Terrain Scan Density 10 Evasion (%) 40 Recoil Reduction 2 Item Schematics ----------------- None Robot Schematics ------------------ None Fabricated ------------ Nothing Repaired ---------- Lgt. Treads | 57% | -10/Materials Studied --------- None Alien Tech Used ----------------- None Achievements -------------- None Challenges ------------ None Game ------ Seed RemoteExplosiveJetlance Manual? 0 Play Time 00:20:32 Cumulative 144.1 hours Start 2026.01.24 @ 12:35:10 End 2026.01.24 @ 13:01:22 Sessions 1 Manual Loads 0 Difficulty Rogue Special Mode None Game No. 89 Rogue 89 Adventurer 0 Explorer 0 Win Type - Total 0 Types 0/0/0/0/0/0/0/0/0/0 Lore% 54 Gallery% 45 Achievement% 25 Wizard Run 0 Options --------- Layout 1 ASCII 0 Keyboard 0 Movement Numpad Keybinds 0 Fullscreen 1 Font 24/Smallcaps Map View 50x35 Zoom Use 0% Tactical HUD 1 Map Filters NONE Filters NONE Steam 1 RUN: b8284947-41c8-4e1d-82df-f86588b117f7